fUSD/lending_fUSD_20260131
["ID","MTS","AMOUNT","RATE_DAILY","PERIOD"]
[404103049,1769847038563,-500.0,0.00016438,2]
[404103051,1769847038573,-500.0,0.00016438,2]
[404103054,1769847038583,-165.39,0.0001644,2]
[404103056,1769847038592,-204.0,0.00016441,2]
[404103057,1769847038602,-150.0,0.00016453,2]
[404103059,1769847038611,-474.0,0.00016458,2]
[404103061,1769847038620,-250.0,0.00016463,2]
[404103064,1769847038630,-200.15165128,0.00016463,2]
[404103065,1769847038639,-500.0,0.00016463,2]
[404103068,1769847038648,-647.23252551,0.00016463,2]
[404103069,1769847038657,-150.0,0.00016463,2]
[404103071,1769847038666,-207.52878104,0.00016463,2]
[404103074,1769847038679,-508.55525493,0.00016471,2]
[404103076,1769847038689,-151.0,0.00016471,2]
[404103078,1769847038698,-151.0,0.00016471,2]
[404103080,1769847038708,-151.0,0.00016471,2]
[404103082,1769847038719,-151.0,0.00016471,2]
[404103084,1769847038728,-151.0,0.00016471,2]
[404103085,1769847038738,-151.0,0.00016471,2]
[404103087,1769847038748,-210.19255456,0.00016471,2]
[404103090,1769847038760,-500.0,0.00016471,2]
[404103092,1769847038772,-500.0,0.00016471,2]
[404103094,1769847038781,-500.0,0.00016471,2]
[404103096,1769847038790,-500.0,0.00016471,2]
[404103098,1769847038799,-500.0,0.00016471,2]
[404103100,1769847038808,-500.0,0.00016471,2]
[404103102,1769847038818,-500.0,0.00016471,2]
[404103104,1769847038827,-500.0,0.00016471,2]
[404103106,1769847038836,-500.0,0.00016471,2]
[404103108,1769847038847,-500.0,0.00016471,2]
[404103110,1769847038856,-500.0,0.00016471,2]
[404103112,1769847038865,-151.0,0.00016471,2]
[404103114,1769847038874,-151.0,0.00016471,2]
[404103116,1769847038884,-151.0,0.00016471,2]
[404103118,1769847038894,-151.0,0.00016471,2]
[404103120,1769847038904,-151.0,0.00016471,2]
[404103122,1769847038913,-151.0,0.00016471,2]
[404103124,1769847038923,-151.0,0.00016471,2]
[404103126,1769847038932,-151.0,0.00016471,2]
[404103128,1769847038942,-151.0,0.00016471,2]
[404103130,1769847038951,-151.0,0.00016471,2]
[404103132,1769847038961,-151.0,0.00016471,2]
[404103134,1769847038970,-175.86956891,0.00016481,2]
[404103136,1769847038979,-187.48570638,0.00016481,2]
[404103138,1769847038988,-610.0,0.00016481,2]
[404103140,1769847038997,-500.0,0.00016481,2]
[404103142,1769847039006,-150.0,0.00016481,2]
[404103144,1769847039015,-500.0,0.00016493,2]
[404103146,1769847039025,-197.0,0.00016493,2]
[404103147,1769847039034,-150.0,0.00016508,2]
[404103149,1769847039043,-2611.26708231,0.00016512,2]
[404103151,1769847039053,-1487.3199841,0.00016512,2]
[404103154,1769847039064,-417.67,0.00016515,2]
[404103156,1769847039074,-500.0,0.00016517,2]
[404103158,1769847039083,-150.0,0.00016517,2]
[404103159,1769847039092,-610.0,0.00016536,2]
[404103162,1769847039102,-500.0,0.00016536,2]
[404103163,1769847039111,-150.0,0.00016536,2]
[404103166,1769847039122,-500.0,0.00016548,2]
[404103168,1769847039131,-566.0,0.00016548,2]
[404103169,1769847039140,-175.73,0.00016553,2]
[404103172,1769847039151,-3755.16227122,0.00016561,2]
[404103174,1769847039160,-150.0,0.00016563,2]
[404103176,1769847039170,-500.0,0.00016572,2]
[404103178,1769847039179,-150.0,0.00016572,2]
[404103180,1769847039188,-610.0,0.00016591,2]
[404103181,1769847039197,-500.0,0.00016591,2]
[404103183,1769847039207,-500.0,0.00016602,2]
[404103186,1769847039217,-168.0,0.00016622,2]
[404103187,1769847039226,-458.84584656,0.00016627,2]
[404103190,1769847039237,-204.00609214,0.00016627,2]
[404103192,1769847039247,-610.0,0.00016645,2]
[404103194,1769847039258,-510.84614029,0.00016645,2]
[404103196,1769847039267,-322.6107,0.00016645,2]
[404103198,1769847039276,-151.0,0.00016645,2]
[404103200,1769847039286,-1000.0,0.00016645,2]
[404103202,1769847039295,-1000.0,0.00016645,2]
[404103204,1769847039305,-721.12765535,0.00016645,2]
[404103206,1769847039315,-663.66695711,0.00016645,2]
[404103208,1769847039324,-174.61919141,0.00016645,2]
[404103210,1769847039335,-578.20924308,0.00016645,2]
[404103212,1769847039344,-859.80605061,0.00016645,2]
[404103213,1769847039354,-1428.38747117,0.00016645,2]
[404103215,1769847039364,-500.0,0.00016645,2]
[404103217,1769847039373,-331.41988707,0.00016645,2]
[404103219,1769847039382,-209.40437684,0.00016645,2]
[404103221,1769847039392,-2000.0,0.00016645,2]
[404103223,1769847039402,-2000.0,0.00016645,2]
[404103225,1769847039412,-2000.0,0.00016645,2]
[404103228,1769847039422,-787.75971636,0.00016645,2]
[404103229,1769847039431,-2603.7601,0.00016654,2]
[404103232,1769847039441,-1865.6781,0.00016654,2]
[404103233,1769847039450,-474.0,0.00016654,2]
[404103235,1769847039461,-500.0,0.00016657,2]
[404103238,1769847039472,-199.0,0.00016659,2]
[404103240,1769847039481,-474.0,0.00016683,2]
[404103241,1769847039491,-2611.26708231,0.00016685,2]
[404103243,1769847039501,-1487.3199841,0.00016685,2]
[404103245,1769847039511,-610.0,0.000167,2]
[404103247,1769847039521,-217.15233878,0.000167,2]
[404103250,1769847039531,-500.0,0.00016712,2]
[404103252,1769847039540,-199.0,0.00016743,2]
[404103253,1769847039551,-838.89,0.00016753,2]
[404103256,1769847039561,-610.0,0.00016755,2]
[404103258,1769847039571,-151.0,0.00016755,2]
[404103260,1769847039580,-1056.82244701,0.00016755,5]
[404103262,1769847039589,-501.67121914,0.00016755,2]
[404103264,1769847039599,-154.275957,0.00016755,2]
[404103266,1769847039608,-543.6,0.00016755,2]
[404103268,1769847039617,-500.0,0.00016755,2]
[404103270,1769847039627,-500.0,0.00016755,2]
[404103272,1769847039637,-500.0,0.00016755,2]
[404103274,1769847039647,-219258.9696,0.00016755,2]
[404103275,1769847039657,-2331.0,0.00016755,2]
[404103278,1769847039667,-225.18697532,0.00016755,2]
[404103280,1769847039682,-152.22241395,0.00016756,2]
[404103282,1769847039695,-195.007438,0.00016756,2]
[404103284,1769847039704,-500.0,0.00016767,2]
[404103286,1769847039714,-200.009499,0.00016769,2]
[404103288,1769847039725,-3755.16227122,0.00016784,2]
[404103289,1769847039734,-610.0,0.0001681,2]
[404103291,1769847039743,-233.51889341,0.0001681,2]
[404103293,1769847039754,-500.0,0.00016822,2]
[404103295,1769847039763,-543.6,0.00016845,2]
[404103297,1769847039772,-500.0,0.00016845,2]
[404103299,1769847039782,-500.0,0.00016845,2]
[404103302,1769847039791,-500.0,0.00016845,2]
[404103304,1769847039801,-313.1671779,0.00016855,2]
[404103306,1769847039810,-6176.6096898,0.00016855,2]
[404103309,1769847039819,-4004.4206132,0.00016855,2]
[404103312,1769847039829,-321.9070148,0.00016855,2]
[404103314,1769847039839,-2661.6091407,0.00016855,2]
[404103316,1769847039849,-153.45645424,0.00016856,2]
[404103318,1769847039858,-200.0,0.00016856,2]
[404103320,1769847039867,-181.65419782,0.00016856,2]
[404103322,1769847039877,-1502.0,0.00016856,2]
[404103324,1769847039886,-1502.0,0.00016856,2]
[404103326,1769847039896,-168.0,0.00016857,2]
[404103328,1769847039906,-2611.26708231,0.00016859,2]
[404103330,1769847039915,-1487.3199841,0.00016859,2]
[404103332,1769847039926,-610.0,0.00016865,2]
[404103334,1769847039935,-242.15909246,0.00016865,2]
[404103336,1769847039945,-1370.23,0.00016875,2]
[404103338,1769847039954,-460.59551606,0.00016876,2]
[404103339,1769847039966,-207.77112,0.0001689,2]
[404103341,1769847039976,-207.77112,0.0001689,2]
[404103343,1769847039986,-207.77112,0.0001689,2]
[404103346,1769847039996,-874.43778,0.0001689,2]
[404103348,1769847040005,-987.9198839,0.00016899,2]
[404103350,1769847040015,-610.0,0.00016919,2]
[404103352,1769847040024,-251.11897888,0.0001692,2]
[404103354,1769847040033,-610.0,0.00016974,2]
[404103356,1769847040043,-260.4103811,0.00016975,2]
[404103357,1769847040052,-1000.0,0.00016986,2]
[404103360,1769847040062,-874.43779,0.0001699,2]
[404103362,1769847040072,-250.0,0.00017,2]
[404103364,1769847040082,-3755.16227122,0.00017007,2]
[404103366,1769847040091,-200.0,0.00017025,2]
[404103368,1769847040100,-838.89,0.00017027,2]
[404103370,1769847040109,-610.0,0.00017029,2]
[404103372,1769847040118,-270.0455652,0.0001703,2]
[404103374,1769847040128,-2611.26708231,0.00017032,2]
[404103376,1769847040137,-1487.3199841,0.00017032,2]
[404103378,1769847040147,-319.0,0.0001704,2]
[404103380,1769847040157,-1282.3061684,0.00017057,2]
[404103381,1769847040167,-200.0,0.00017057,2]
[404103383,1769847040177,-200.0,0.00017057,2]
[404103385,1769847040187,-207.77112,0.00017057,2]
[404103388,1769847040196,-207.77112,0.00017057,2]
[404103390,1769847040206,-207.77112,0.00017057,2]
[404103392,1769847040215,-610.0,0.00017084,2]
[404103394,1769847040224,-280.03725112,0.00017085,2]
[404103396,1769847040234,-1103.0,0.00017089,2]
[404103397,1769847040244,-874.43779,0.0001709,2]
[404103399,1769847040253,-168.07,0.00017093,2]
[404103402,1769847040264,-166.66,0.00017105,2]
[404103404,1769847040273,-396.0,0.00017107,2]
[404103406,1769847040283,-168.0,0.00017108,2]
[404103407,1769847040292,-417.67,0.00017112,2]
[404103409,1769847040301,-169.0,0.00017115,2]
[404103412,1769847040311,-169.0,0.00017123,2]
[404103414,1769847040320,-188.74513069,0.00017128,2]
[404103416,1769847040329,-169.0,0.00017136,2]
[404103418,1769847040339,-610.0,0.00017139,2]
[404103419,1769847040347,-169.0,0.00017139,2]
[404103421,1769847040357,-290.39862941,0.0001714,2]
[404103423,1769847040366,-1413.1359,0.00017165,2]
[404103426,1769847040376,-874.43778,0.0001719,2]
[404103428,1769847040385,-610.0,0.00017193,2]
[404103430,1769847040394,-151.0,0.00017193,2]
[404103431,1769847040404,-181.08010149,0.00017193,2]
[404103434,1769847040414,-1481.23780761,0.00017193,2]
[404103435,1769847040423,-301.1433787,0.00017195,2]
[404103438,1769847040432,-2611.26708231,0.00017206,2]
[404103439,1769847040442,-1487.3199841,0.00017206,2]
[404103441,1769847040451,-200.0,0.00017228,2]
[404103443,1769847040460,-200.0,0.00017228,2]
[404103445,1769847040470,-3755.16227122,0.00017231,2]
[404103447,1769847040480,-610.0,0.00017248,2]
[404103449,1769847040489,-168.0,0.00017259,2]
[404103451,1769847040499,-252.40180303,0.00017265,2]
[404103453,1769847040508,-666.09235158,0.00017265,2]
[404103455,1769847040518,-1175.06586264,0.00017265,2]
[404103456,1769847040527,-1757.82825443,0.00017265,2]
[404103458,1769847040537,-2378.3958,0.00017265,2]
[404103460,1769847040546,-874.43779,0.0001729,2]
[404103461,1769847040556,-300.0,0.000173,6]
[404103462,1769847040565,-838.89,0.00017301,2]
[404103463,1769847040575,-610.0,0.00017303,2]
[404103465,1769847040585,-396.0,0.00017315,2]
[404103466,1769847040594,-4376.0,0.00017335,2]
[404103467,1769847040604,-249.64,0.00017335,2]
[404103468,1769847040613,-545.19,0.00017345,2]
[404103469,1769847040622,-396.0,0.00017358,2]
[404103470,1769847040631,-610.0,0.00017358,2]
[404103471,1769847040641,-932.64,0.00017373,2]
[404103472,1769847040651,-932.64,0.00017373,2]
[404103473,1769847040660,-932.64,0.00017373,2]
[404103474,1769847040670,-932.64,0.00017373,2]
[404103475,1769847040683,-932.64,0.00017373,2]
[404103476,1769847040693,-1337.3,0.00017373,2]
[404103477,1769847040703,-2611.26708231,0.00017379,2]
[404103478,1769847040713,-1487.3199841,0.00017379,2]
[404103479,1769847040724,-874.43779,0.0001739,2]
[404103480,1769847040734,-200.0,0.000174,2]
[404103481,1769847040743,-200.0,0.000174,2]
[404103482,1769847040754,-600.0,0.000174,6]
[404103483,1769847040764,-610.0,0.00017413,2]
[404103484,1769847040773,-654.10952106,0.00017432,2]
[404103485,1769847040783,-2562.76577346,0.00017432,2]
[404103486,1769847040792,-246.0965993,0.00017432,2]
[404103487,1769847040802,-165.26,0.00017435,2]
[404103488,1769847040812,-166.66,0.00017438,2]
[404103489,1769847040822,-3755.16227122,0.00017454,2]
[404103490,1769847040833,-610.0,0.00017467,2]
[404103491,1769847040845,-772.96,0.00017493,2]
[404103492,1769847040857,-868.64,0.00017493,2]
[404103493,1769847040867,-900.0,0.000175,6]
[404103494,1769847040876,-1215.049,0.00017507,2]
[404103495,1769847040885,-921.041,0.00017507,2]
[404103496,1769847040895,-610.0,0.00017522,2]
[404103497,1769847040905,-646.5,0.00017537,2]
[404103498,1769847040914,-2611.26708231,0.00017553,2]
[404103499,1769847040927,-1487.3199841,0.00017553,2]
[404103500,1769847040936,-2454.841,0.00017573,2]
[404103501,1769847040946,-409.648,0.00017573,2]
[404103502,1769847040956,-5934.0,0.00017573,2]
[404103503,1769847040965,-200.0,0.00017574,2]
[404103504,1769847040974,-200.0,0.00017574,2]
[404103505,1769847040983,-838.89,0.00017575,2]
[404103506,1769847040993,-610.0,0.00017577,2]
[404103507,1769847041003,-646.5,0.00017579,2]
[404103508,1769847041012,-500.0,0.00017584,2]
[404103509,1769847041021,-175.73,0.00017588,2]
[404103510,1769847041032,-150.0,0.00017593,2]
[404103511,1769847041041,-150.0,0.00017593,2]
[404103512,1769847041051,-10000.0,0.00017599,2]
[404103513,1769847041060,-1000.0,0.00017599,2]
[404103514,1769847041070,-1200.0,0.000176,6]
[404103515,1769847041079,-646.5,0.00017621,2]
[404103516,1769847041089,-610.0,0.00017632,2]
[404103517,1769847041098,-646.5,0.00017663,2]
[404103518,1769847041107,-3755.16227122,0.00017677,2]
[404103519,1769847041116,-1370.23,0.00017678,2]
[404103520,1769847041126,-830.0,0.0001768,2]
[404103521,1769847041135,-250.0,0.00017685,2]
[404103522,1769847041144,-610.0,0.00017686,2]
[404103523,1769847041155,-173.75,0.00017697,2]
[404103524,1769847041164,-1500.0,0.000177,6]
[404103525,1769847041174,-1500.0,0.000177,2]
[404103526,1769847041183,-646.5,0.00017705,2]
[404103527,1769847041198,-417.67,0.00017709,2]
[404103528,1769847041208,-2611.26708231,0.00017726,2]
[404103529,1769847041217,-1487.3199841,0.00017726,2]
[404103530,1769847041227,-610.0,0.00017741,2]
[404103531,1769847041236,-47.62660638,0.00017741,2]
[404103532,1769847042277,-103.37339362,0.00017741,2]
[404103533,1769847042287,-187.78006525,0.00017741,2]
[404103534,1769847042296,-1536.04360649,0.00017741,2]
[404103535,1769847042306,-646.5,0.00017747,2]
[404103536,1769847042315,-200.0,0.0001775,2]
[404103537,1769847042325,-200.0,0.0001775,2]
[404103538,1769847042334,-982.25435638,0.00017753,2]
[404103539,1769847042343,-157.15,0.00017756,2]
[404103540,1769847042353,-2408.407,0.00017759,2]
[404103541,1769847042362,-158.587,0.00017759,2]
[404103542,1769847042371,-210.554,0.00017765,2]
[404103543,1769847042381,-150.216,0.00017765,2]
[404103544,1769847042390,-250.0,0.00017765,2]
[404103545,1769847042400,-191.559,0.00017765,2]
[404103546,1769847042409,-164.327,0.00017765,2]
[404103547,1769847042419,-212.666,0.00017765,2]
[404103548,1769847042429,-250.0,0.00017765,2]
[404103549,1769847042439,-231.003,0.00017765,2]
[404103550,1769847042449,-170.0,0.00017765,2]
[404103551,1769847042459,-1410.0,0.00017765,2]
[404103552,1769847042469,-3480.0,0.00017765,2]
[404103553,1769847042479,-619.767,0.00017765,2]
[404103554,1769847042488,-1334.0,0.00017765,2]
[404103555,1769847042498,-1270.0,0.00017765,2]
[404103556,1769847042508,-193.735,0.00017765,2]
[404103557,1769847042517,-772.96,0.00017767,2]
[404103558,1769847042527,-868.64,0.00017767,2]
[404103559,1769847042537,-646.5,0.0001779,2]
[404103560,1769847042547,-500.0,0.00017799,2]
[404103561,1769847042557,-500.0,0.00017799,2]
[404103562,1769847042567,-166.72600059,0.00017799,2]
[404103564,1769847042576,-581.87,0.00017799,2]
[404103565,1769847042586,-500.0,0.00017799,2]
[404103566,1769847042596,-300.0,0.000178,6]
[404103567,1769847042606,-154.68976423,0.00017808,2]
[404103568,1769847042615,-1819.0,0.00017808,2]
[404103569,1769847042626,-200.0,0.00017829,2]
[404103570,1769847042637,-646.5,0.00017832,2]
[404103571,1769847042649,-159.55318297,0.00017843,2]
[404103572,1769847042658,-310.68575826,0.00017843,2]
[404103573,1769847042670,-85.31424174,0.00017843,2]
[404103574,1769847042683,-838.89,0.00017849,2]
[404103575,1769847042693,-1000.0,0.00017873,2]
[404103576,1769847042703,-646.5,0.00017874,2]
[404103577,1769847042717,-396.0,0.00017885,2]
[404103578,1769847042726,-500.0,0.00017898,2]
[404103579,1769847042736,-500.0,0.00017898,2]
[404103580,1769847042744,-523.27539933,0.00017898,2]
[404103581,1769847042755,-300.0,0.00017899,2]
[404103582,1769847042764,-178.85416531,0.000179,2]
[404103583,1769847042774,-1190.52714163,0.000179,2]
[404103584,1769847042783,-300.0,0.000179,6]
[404103585,1769847042792,-2611.26708231,0.000179,2]
[404103586,1769847042801,-1326.69006442,0.000179,2]
[404103587,1769847042836,-160.62991968,0.000179,2]
[404103588,1769847042846,-3135.38234841,0.000179,2]
[404103589,1769847042868,-619.77992281,0.000179,2]
[404103590,1769847042877,-248.2836007,0.000179,2]
[404103591,1769847042887,-200.7342528,0.000179,2]
[404103592,1769847042896,-188.74513068,0.000179,2]
[404103593,1769847042907,-646.5,0.00017916,2]
[404103594,1769847042916,-1680.0,0.00017945,2]
[404103595,1769847042925,-646.5,0.00017958,2]
[404103596,1769847042934,-300.0,0.00017972,2]
[404103597,1769847042943,-300.0,0.00017972,2]
[404103598,1769847042953,-675.99939671,0.00017972,2]
[404103599,1769847042962,-531.81236874,0.00017973,2]
[404103600,1769847043127,-680.50293505,0.00017973,2]
[404103601,1769847043139,-3430.68469621,0.00017973,2]
[404103602,1769847043150,-874.0,0.00017973,2]
[404103603,1769847043159,-3332.56139239,0.00017973,2]
[404103605,1769847043732,-5857.7538385,0.000179,2]
[404103607,1769847043743,-523.34287504,0.000179,2]
[404103608,1769847043763,-8697.51355039,0.000179,2]
[404103609,1769847043772,-27744.43860761,0.00017973,2]
[404103610,1769847043783,-500.0,0.00017973,2]
[404103611,1769847043792,-500.0,0.00017973,2]
[404103612,1769847043805,-500.0,0.00017973,2]
[404103613,1769847043816,-501.68536334,0.00017973,2]
[404103614,1769847043826,-500.0,0.00017973,2]
[404103615,1769847043835,-500.0,0.00017973,2]
[404103616,1769847043844,-500.0,0.00017973,2]
[404103617,1769847043854,-500.0,0.00017973,2]
[404103618,1769847043863,-500.0,0.00017973,2]
[404103619,1769847043872,-334.72132815,0.00017973,2]
[404103620,1769847043882,-500.0,0.00017973,2]
[404103621,1769847043891,-502.22840909,0.00017973,2]
[404103622,1769847043900,-500.0,0.00017973,2]
[404103623,1769847043909,-500.0,0.00017973,2]
[404103624,1769847043919,-487.41342802,0.00017973,2]
[404103625,1769847043928,-500.0,0.00017973,2]
[404103626,1769847043937,-500.0,0.00017973,2]
[404103627,1769847043946,-500.0,0.00017973,2]
[404103628,1769847043955,-500.0,0.00017973,2]
[404103629,1769847043964,-500.0,0.00017973,2]
[404103630,1769847043974,-500.0,0.00017973,2]
[404103631,1769847043983,-500.0,0.00017973,2]
[404103632,1769847043992,-500.0,0.00017973,2]
[404103633,1769847044002,-500.0,0.00017973,2]
[404103634,1769847044011,-500.62937167,0.00017973,2]
[404103635,1769847044020,-157.52614189,0.00017973,2]
[404103636,1769847044029,-500.0,0.00017973,2]
[404103637,1769847044038,-501.40511861,0.00017973,2]
[404103638,1769847044047,-500.0,0.00017973,2]
[404103639,1769847044057,-501.81312345,0.00017973,2]
[404103640,1769847044066,-501.99346437,0.00017973,2]
[404103641,1769847044075,-375.40383298,0.00017973,2]
[404103642,1769847044085,-501.6324076,0.00017973,2]
[404103643,1769847044096,-166.63411343,0.00017973,2]
[404103644,1769847044105,-500.0,0.00017973,2]
[404103645,1769847044114,-500.0,0.00017973,2]
[404103646,1769847044123,-500.0,0.00017973,2]
[404103647,1769847044133,-500.0,0.00017973,2]
[404103648,1769847044142,-500.0,0.00017973,2]
[404103649,1769847044152,-501.39765573,0.00017973,2]
[404103650,1769847044161,-500.0,0.00017973,2]
[404103651,1769847044170,-376.73726762,0.00017973,2]
[404103652,1769847044179,-500.0,0.00017973,2]
[404103653,1769847044188,-500.0,0.00017973,2]
[404103654,1769847044199,-500.0,0.00017973,2]
[404103655,1769847044209,-500.0,0.00017973,2]
[404103656,1769847044218,-500.0,0.00017973,2]
[404103657,1769847044228,-501.85428238,0.00017973,2]
[404103658,1769847044238,-500.0,0.00017973,2]
[404103659,1769847044248,-500.0,0.00017973,2]
[404103660,1769847044257,-500.0,0.00017973,2]
[404103661,1769847044266,-500.0,0.00017973,2]
[404103662,1769847044275,-168.07,0.00017984,2]
[404103663,1769847044284,-1103.0,0.00017988,2]
[404103664,1769847044294,-316.84851941,0.0001799,2]
[404103665,1769847044303,-316.84851941,0.0001799,2]
[404103666,1769847044313,-316.84851941,0.0001799,2]
[404103667,1769847044322,-543.6,0.00017998,2]
[404103668,1769847044333,-526.77967755,0.00017998,2]
[404103669,1769847044344,-500.0,0.00017998,2]
[404103670,1769847044354,-500.0,0.00017998,2]
[404103671,1769847044363,-300.0,0.00017998,2]
[404103672,1769847044372,-300.0,0.00017998,2]
[404103673,1769847044381,-500.0,0.00017999,2]
[404103674,1769847044390,-500.0,0.00017999,2]
[404103675,1769847044400,-500.0,0.00017999,2]
[404103676,1769847044409,-371.14821235,0.00017999,2]
[404103677,1769847044418,-285.43134816,0.00017999,2]
[404103678,1769847044427,-543.6,0.00017999,2]
[404103679,1769847044436,-543.6,0.00017999,2]
[404103680,1769847044445,-543.6,0.00017999,2]
[404103681,1769847044454,-543.6,0.00017999,2]
[404103682,1769847044463,-543.6,0.00017999,2]
[404103683,1769847044472,-543.6,0.00017999,2]
[404103684,1769847044482,-543.6,0.00017999,2]
[404103685,1769847044491,-543.6,0.00017999,2]
[404103686,1769847044500,-543.6,0.00017999,2]
[404103687,1769847044509,-368.44774682,0.00017999,2]
[404103688,1769847044520,-543.6,0.00017999,2]
[404103689,1769847044529,-543.6,0.00017999,2]
[404103690,1769847044539,-543.6,0.00017999,2]
[404103691,1769847044549,-543.6,0.00017999,2]
[404103692,1769847044560,-543.6,0.00017999,2]
[404103693,1769847044570,-543.6,0.00017999,2]
[404103694,1769847044579,-543.6,0.00017999,2]
[404103695,1769847044588,-543.6,0.00017999,2]
[404103696,1769847044598,-543.6,0.00017999,2]
[404103697,1769847044607,-543.6,0.00017999,2]
[404103698,1769847044617,-543.6,0.00017999,2]
[404103699,1769847044627,-543.7721329,0.00017999,2]
[404103700,1769847044639,-500.0,0.00017999,2]
[404103701,1769847044649,-500.0,0.00017999,2]
[404103702,1769847044659,-500.0,0.00017999,2]
[404103703,1769847044668,-500.0,0.00017999,2]
[404103704,1769847044681,-500.0,0.00017999,2]
[404103705,1769847044692,-500.0,0.00017999,2]
[404103706,1769847044701,-500.0,0.00017999,2]
[404103707,1769847044710,-500.0,0.00017999,2]
[404103708,1769847044721,-500.0,0.00017999,2]
[404103709,1769847044730,-500.0,0.00017999,2]
[404103710,1769847044739,-500.0,0.00017999,2]
[404103711,1769847044749,-500.0,0.00017999,2]
[404103712,1769847044758,-500.0,0.00017999,2]
[404103713,1769847044767,-177.20883811,0.00017999,2]
[404103714,1769847044776,-581.87,0.00017999,2]
[404103715,1769847044785,-581.87,0.00017999,2]
[404103716,1769847044794,-581.87,0.00017999,2]
[404103717,1769847044803,-581.87,0.00017999,2]
[404103718,1769847044812,-581.87,0.00017999,2]
[404103719,1769847044821,-581.87,0.00017999,2]
[404103720,1769847044830,-581.87,0.00017999,2]
[404103721,1769847044839,-581.87,0.00017999,2]
[404103722,1769847044848,-581.87,0.00017999,2]
[404103723,1769847044857,-581.87,0.00017999,2]
[404103724,1769847044866,-581.87,0.00017999,2]
[404103725,1769847044875,-581.87,0.00017999,2]
[404103726,1769847044884,-581.87,0.00017999,2]
[404103727,1769847044894,-581.87,0.00017999,2]
[404103728,1769847044903,-581.87,0.00017999,2]
[404103729,1769847044912,-581.87,0.00017999,2]
[404103730,1769847044921,-581.87,0.00017999,2]
[404103731,1769847044931,-581.87,0.00017999,2]
[404103732,1769847044940,-581.87,0.00017999,2]
[404103733,1769847044951,-581.87,0.00017999,2]
[404103734,1769847044962,-581.87,0.00017999,2]
[404103735,1769847044971,-581.87,0.00017999,2]
[404103736,1769847044981,-581.99,0.00017999,2]
[404103737,1769847044990,-216.88745347,0.00017999,2]
[404103738,1769847044999,-500.0,0.00017999,2]
[404103739,1769847045009,-500.0,0.00017999,2]
[404103740,1769847045018,-500.0,0.00017999,2]
[404103741,1769847045028,-500.0,0.00017999,2]
[404103742,1769847045038,-500.0,0.00017999,2]
[404103743,1769847045047,-358.11979136,0.00017999,2]
[404103744,1769847045056,-581.44730423,0.00017999,2]
[404103745,1769847045067,-176302.42855936,0.00018,2]
[404103746,1769847045080,-1072.54544301,0.00018,2]
[404103747,1769847045092,-890.978,0.00018,2]
[404103748,1769847045120,-9090.0,0.00018,2]
[404103752,1769847045184,-588.0,0.00018,2]
[404103754,1769847045196,-500.0,0.00018,2]
[404103756,1769847045208,-5176.03152716,0.00018,2]
[404103758,1769847045281,-806.42188722,0.00018,2]
[404103759,1769847045292,-342.26322073,0.00018,2]
[404103764,1769847046717,-500.0,0.00016438,2]
[404103765,1769847046727,-620.89813363,0.000179,2]
[404103766,1769847046737,-40.10186637,0.000179,2]
[404103767,1769847047104,-110.20404966,0.000179,2]
[404103768,1769847047114,-1384.28495034,0.00018,2]